bitfinex-derivatives/quotes_ETHF0:USTF0_20250428
["timestamp","ask_amount","ask_price","bid_price","bid_amount"]
[1745855941300,6.76678,1760.9,1760.8,46.21344]
[1745855941501,5.6314,1760.9,1760.8,46.21344]
[1745855941700,6.76678,1760.9,1760.8,4.278]
[1745855942005,1.13557,1760.6,1760.5,7.4858]
[1745855942305,4.93757,1760.6,1760.5,8.62141]
[1745855942701,4.93757,1760.6,1760.5,4.278]
[1745855942901,4.93757,1760.6,1760.5,5.41364]
[1745855943104,6.72107,1760.6,1760.5,5.41364]
[1745855943607,6.72107,1760.6,1760.5,1.13564]
[1745855943808,1.13564,1760.5,1760.4,41.93567]
[1745855944102,4.58594,1760.5,1760.4,40.8]
[1745855944293,8.38794,1760.5,1760.4,40.8]
[1745855945002,8.38794,1760.5,1760.4,41.9357]
[1745855945203,8.38794,1760.5,1760.4,40.8]
[1745855945692,1.1357,1760.4,1760.3,5.41473]
[1745855945891,1.721,1760.4,1760.3,5.41473]
[1745855946097,5.523,1760.4,1760.3,46.21473]
[1745855946402,3.802,1760.4,1760.3,46.21473]
[1745855947900,5.6078,1760.4,1760.3,46.21473]
[1745855949102,5.6078,1760.4,1760.3,5.41473]
[1745855950004,5.6078,1760.4,1760.3,7.13933]
[1745855950307,6.7435,1760.4,1760.3,7.13933]
[1745855951108,5.6078,1760.4,1760.3,7.13933]
[1745855951803,3.802,1760.4,1760.3,7.13933]
[1745855953010,4.9601,1760.7,1760.6,1.13557]
[1745855953399,4.9601,1760.7,1760.6,41.93557]
[1745855953599,4.9601,1760.7,1760.6,43.71057]
[1745855953799,1.7523,1760.7,1760.6,43.71057]
[1745855953997,4.71871,1760.7,1760.6,43.71057]
[1745855954207,8.52071,1760.7,1760.6,43.71057]
[1745855954409,3.802,1760.7,1760.6,43.71057]
[1745855954709,4.93751,1760.7,1760.6,43.71057]
[1745855954903,4.93751,1760.7,1760.6,42.575]
[1745855955105,10.6329,1760.7,1760.1,7.4868]
[1745855955405,1.13582,1760.3,1760.1,6.054]
[1745855955605,3.2078,1760.5,1760.2,1.775]
[1745855955806,6.9313,1760.5,1760.2,4.62138]
[1745855956112,1.13577,1760.3,1760.2,4.62139]
[1745855956604,1.13583,1760.2,1760.1,45.079]
[1745855956802,3.01663,1760.2,1760.1,46.2149]
[1745855957002,1.8808,1760.2,1760.1,46.2149]
[1745855957310,6.81863,1760.2,1760.1,48.0486]
[1745855958109,5.6828,1760.2,1760.1,48.0486]
[1745855958410,6.81863,1760.2,1760.1,48.0486]
[1745855958609,5.6828,1760.2,1760.1,48.0486]
[1745855958802,3.802,1760.2,1760.1,48.0486]
[1745855959202,2.94874,1760.4,1760.2,1.13578]
[1745855959407,1.13577,1760.3,1760.2,2.94858]
[1745855959812,11.74157,1760.5,1760.4,1.1357]
[1745855959813,3.802,1760.5,1760.4,1.1357]
[1745855960010,2.18943001,1760.5,1760.4,8.6155]
[1745855960307,2.94841,1760.9,1760.7,1.13546]
[1745855960507,1.13544,1760.8,1760.7,5.40751]
[1745855960715,2.94844,1760.8,1760.7,4.272]
[1745855960905,2.94844,1760.8,1760.7,5.40751]
[1745855961113,7.94844,1760.8,1760.7,4.272]
[1745855961411,1.13565,1760.5,1760.4,1.1357]
[1745855961709,1.13564,1760.5,1760.4,1.8128]
[1745855962010,1.13564,1760.5,1760.4,2.9485]
[1745855962217,4.93764,1760.5,1760.4,2.9485]
[1745855962404,6.73024,1760.5,1760.4,2.9485]
[1745855962598,6.73024,1760.5,1760.4,1.8128]
[1745855962804,5.5946,1760.5,1760.4,2.9485]
[1745855963313,3.2078,1761.0,1760.4,7.9485]
[1745855963610,0.02217,1761.3,1761.0,1.13532]
[1745855963797,0.02217,1761.3,1761.0,10.79362]
[1745855964002,1.81477,1761.3,1761.0,51.59362]
[1745855964204,4.8052,1761.3,1761.0,51.59362]
[1745855964605,4.80521,1761.3,1761.0,51.59362]
[1745855964806,3.67007,1761.3,1761.0,51.59362]
[1745855965505,4.80521,1761.3,1761.0,51.59362]
[1745855965909,1.1352,1761.2,1761.0,51.59362]
[1745855966109,2.8508,1761.2,1761.0,51.59362]
[1745855966311,2.8508,1761.2,1761.0,49.82462]
[1745855966504,1.72311119,1761.1,1761.0,49.82462]
[1745855967310,5.52511119,1761.1,1761.0,49.82462]
[1745855968304,3.80951119,1761.1,1761.0,49.82462]
[1745855968507,0.02217,1761.3,1761.0,54.82462]
[1745855968717,7.02292,1761.7,1761.5,1.13496]
[1745855968910,1.8338,1761.6,1761.5,4.271]
[1745855969103,5.0416,1761.6,1761.3,1.7074]
[1745855969308,1.8728,1761.5,1761.3,7.11352]
[1745855969509,3.7066,1761.5,1761.4,1.13506]
[1745855969906,5.5068,1761.7,1761.6,1.13493]
[1745855970113,7.3406,1761.7,1761.6,1.13493]
[1745855971011,5.6358,1761.7,1761.6,1.13493]
[1745855971214,1.8338,1761.7,1761.6,1.13493]
[1745855971710,2.96866,1761.7,1761.6,1.13493]
[1745855972017,2.96866,1761.7,1761.5,1.7074]
[1745855972215,1.7869,1761.6,1761.4,7.4788]
[1745855972416,1.13499,1761.5,1761.4,5.40602]
[1745855972618,6.12967,1761.6,1761.5,1.13499]
[1745855972919,1.7869,1761.6,1761.4,4.271]
[1745855973120,2.92189,1761.5,1761.4,5.406]
[1745855973322,3.802,1761.6,1761.5,1.13499]
[1745855973617,3.802,1761.6,1761.5,2.92009]
[1745855974115,1.7869,1761.7,1761.6,1.13493]
[1745855974312,1.7869,1761.7,1761.6,2.86373]
[1745855975021,1.8728,1761.8,1761.7,1.13486]
[1745855975222,5.6748,1761.8,1761.7,7.13366]
[1745855975518,3.802,1761.8,1761.7,10.34146]
[1745855976320,12.5633,1762.6,1762.3,1.13443]
[1745855976513,1.7538,1762.2,1762.1,8.61241]
[1745855976714,1.7538,1762.2,1762.1,7.13341]
[1745855977224,5.5558,1762.2,1762.1,5.40461]
[1745855977412,3.802,1762.2,1762.1,5.40461]
[1745855977723,3.802,1762.2,1762.1,8.61241]
[1745855977929,3.802,1762.2,1762.1,13.61241]
[1745855978120,3.802,1762.2,1762.1,8.61241]
[1745855978321,1.7416,1762.5,1762.4,1.13441]
[1745855979324,5.5436,1762.5,1762.4,41.93441]
[1745855979512,3.802,1762.5,1762.4,41.93441]
[1745855979818,3.802,1762.5,1762.4,46.20341]
[1745855980022,3.802,1762.5,1762.4,49.64131]
[1745855980319,1.7416,1762.8,1762.4,49.64131]
[1745855980521,1.8494,1762.7,1762.6,1.13429]
[1745855981216,5.6514,1762.7,1762.6,1.13429]
[1745855981914,5.6514,1762.7,1762.6,2.89669]
[1745855982316,3.802,1762.7,1762.6,7.89669]
[1745855982825,3.802,1762.7,1762.6,2.89669]
[1745855983228,2.60193209,1763.3,1763.2,1.1339]
[1745855983418,1.8679,1763.4,1763.3,1.13383]
[1745855983616,1.8679,1763.4,1763.1,1.7423]
[1745855983822,1.8679,1763.4,1763.3,1.13383]
[1745855984120,5.6699,1763.4,1763.1,1.7423]
[1745855984322,6.8037,1763.4,1763.2,1.13387]
[1745855984525,6.80369,1763.4,1763.0,8.90634]
[1745855984831,1.13383,1763.3,1763.2,1.13385]
[1745855985019,3.00173,1763.3,1763.1,1.13394]
[1745855985219,1.1339,1763.2,1763.1,1.13394]
[1745855985419,1.8679,1763.2,1762.9,3.2078]
[1745855985621,2.97306,1763.1,1762.9,3.2078]
[1745855985928,3.00193,1763.0,1762.9,1.13409]
[1745855986125,5.6699,1763.0,1762.9,1.13409]
[1745855987027,3.2078,1763.5,1763.4,1.13377]
[1745855987820,4.34156,1763.5,1763.4,1.13377]
[1745855988029,1.13377,1763.4,1763.3,1.13378]
[1745855988231,1.7421,1763.4,1763.3,1.13378]
[1745855988524,3.4707,1763.4,1763.3,1.13378]
[1745855988724,3.4707,1763.4,1763.3,1.13383]
[1745855988918,1.13383,1763.3,1763.2,5.40088]
[1745855989118,12.55243,1763.3,1763.2,1.13388]
[1745855989319,1.1339,1763.2,1763.1,4.34171]
[1745855989522,3.802,1763.3,1763.2,1.1339]
[1745855989830,3.2078,1763.8,1763.5,1.13371]
[1745855990026,3.2078,1763.8,1763.7,1.13358]
[1745855990225,8.14331,1763.8,1763.7,1.13358]
[1745855990424,1.13363,1763.7,1763.6,1.13362]
[1745855990725,3.5152,1763.7,1763.6,1.13362]
[1745855990919,8.5152,1763.7,1763.6,1.13362]
[1745855991122,12.3172,1763.7,1763.6,1.13362]
[1745855991322,13.45078,1763.7,1763.6,1.13362]
[1745855991518,3.802,1763.7,1763.6,1.13362]
[1745855991725,5.6105,1763.7,1763.6,1.13362]
[1745855992530,5.6105,1763.7,1763.6,4.34142]
[1745855992834,5.6105,1763.7,1763.6,4.77942629]
[1745855993331,3.802,1763.7,1763.6,4.34142]
[1745855994036,4.9356,1763.7,1763.4,3.2078]
[1745855994333,1.8234,1763.6,1763.5,1.13371]
[1745855994633,3.802,1763.7,1763.6,1.13364]
[1745855994634,3.21152329,1763.7,1763.6,1.13364]
[1745855994833,3.21152329,1763.7,1763.6,4.34144]
[1745855995132,1.8234,1763.9,1763.8,1.13351]
[1745855995531,5.0,1763.9,1763.8,1.13351]
[1745855995935,10.7137,1764.2,1763.9,1.13341]
[1745855996232,1.13332,1764.1,1764.0,1.13336]
[1745855996632,1.1334,1764.0,1763.9,1.1334]
[1745855997024,1.13346,1763.9,1763.8,1.13345]
[1745855997229,1.13343,1764.0,1763.9,1.13341]
[1745855997734,6.13343,1764.0,1763.9,1.13341]
[1745855998133,5.0,1764.0,1763.9,1.13341]
[1745855998334,8.802,1764.0,1763.9,1.13341]
[1745855998735,4.93539,1764.0,1763.9,1.13341]
[1745855998934,3.802,1764.0,1763.9,1.13341]
[1745855999129,3.7039,1764.2,1764.1,1.13332]
[1745855999825,4.83716,1764.2,1764.1,1.13332]
[1745856000229,13.63916,1764.2,1763.7,1.8331]
[1745856000429,1.13351,1763.8,1763.7,1.8331]
[1745856001229,3.802,1763.8,1763.5,1.746]
[1745856001532,3.802,1763.8,1763.7,1.13358]
[1745856002132,4.93551,1763.8,1763.7,1.13358]
[1745856002332,1.13364,1763.7,1763.6,1.13362]
[1745856002738,6.78317,1763.8,1763.7,1.13358]
[1745856003037,6.78311,1763.8,1763.7,1.13358]
[1745856003935,1.13358,1763.7,1763.6,1.13359]
[1745856004239,2.83488,1763.7,1763.6,1.13359]
[1745856004440,1.7013,1763.7,1763.6,1.13359]
[1745856004746,4.259,1764.2,1763.5,4.9538]
[1745856005032,0.02196,1764.7,1763.4,2.2931173]
[1745856005240,3.2078,1763.8,1763.4,1.8457]
[1745856005538,1.13371,1763.5,1763.4,1.8457]
[1745856005938,3.2078,1763.6,1763.3,1.13381]
[1745856006238,1.13371,1763.5,1763.1,45.83805144]
[1745856006436,1.1338,1763.4,1763.3,1.13382]
[1745856006638,1.13378,1763.4,1763.1,45.83806144]
[1745856006841,7.0098,1763.6,1763.2,6.04247]
[1745856007142,1.13372,1763.5,1763.4,1.13373]
[1745856007742,1.13378,1763.4,1763.3,1.13379]
[1745856007943,3.2078,1763.6,1763.3,1.13379]
[1745856008142,3.802,1763.4,1763.3,1.13379]
[1745856009138,3.802,1763.4,1763.2,4.3417]
[1745856009340,1.13384,1763.3,1763.1,40.8]
[1745856009534,9.84424,1763.4,1763.0,4.259]
[1745856009735,1.13396,1763.1,1763.0,4.259]
[1745856009936,1.13408,1763.0,1762.8,4.34194]
[1745856010240,1.13408,1763.0,1762.9,1.13409]
[1745856010241,1.13403,1763.0,1762.9,1.13409]
[1745856010435,2.83508,1763.0,1762.7,4.258]
[1745856010628,1.13422,1762.7,1762.6,5.0182]
[1745856011032,1.13419,1762.8,1762.7,1.13422]
[1745856011234,1.13422,1762.7,1762.6,4.34204]
[1745856011536,1.13422,1762.7,1762.6,3.2078]
[1745856012040,3.802,1762.8,1762.5,1.13432]
[1745856012241,1.13429,1762.6,1762.5,1.13432]
[1745856012442,3.802,1762.7,1762.4,5.39236]
[1745856012637,1.13439,1762.5,1762.3,1.57051246]
[1745856012845,1.13441,1762.4,1762.2,43.7449]
[1745856013034,1.13441,1762.4,1762.2,1.1345]
[1745856013236,4.93641,1762.4,1762.3,1.13448]
[1745856013542,3.802,1762.4,1762.3,1.13448]
[1745856013744,4.93647,1762.4,1762.2,1.13451]
[1745856014145,3.802,1762.4,1762.0,4.78096703]
[1745856014443,3.802,1762.4,1762.3,1.13448]
[1745856014942,4.93641,1762.4,1762.0,47.28298703]
[1745856015142,3.802,1762.4,1762.1,1.13459]
[1745856015444,1.13456,1762.2,1762.1,1.1346]
[1745856015642,3.802,1762.4,1761.9,0.44069189]
[1745856015848,3.802,1762.4,1761.8,11.9819]
[1745856015849,3.802,1762.4,1762.3,1.13448]
[1745856016341,3.802,1762.4,1762.0,3.2078]
[1745856016541,1.13448,1762.3,1762.1,1.13458]
[1745856016743,1.1345,1762.3,1762.0,3.2078]
[1745856016937,1.1345,1762.3,1762.1,1.13455]
[1745856017133,3.802,1762.3,1762.2,1.13449]
[1745856017541,1.13455,1762.2,1762.1,1.13459]
[1745856017741,3.802,1762.3,1762.2,1.13454]
[1745856017938,3.802,1762.3,1762.2,4.34234]
[1745856018140,4.34173,1763.2,1763.0,1.13398]
[1745856018447,3.2078,1763.2,1762.7,6.04334]
[1745856018744,1.13399,1763.1,1762.9,1.13404]
[1745856019045,6.04259,1763.2,1762.7,7.4678]
[1745856019246,7.0098,1763.2,1762.9,1.13407]
[1745856019545,1.13411,1762.9,1762.7,7.4678]
[1745856019732,2.83493,1763.1,1762.5,3.2078]
[1745856019931,1.13427,1762.7,1762.5,7.4648]
[1745856020141,3.802,1762.7,1762.6,1.13425]
[1745856020539,0.9644766,1762.7,1762.6,1.13425]
[1745856021043,2.0987366,1762.7,1762.5,7.4648]
[1745856021246,0.9644766,1762.7,1762.6,41.93429]
[1745856021641,2.0986966,1762.7,1762.6,40.8]
[1745856021947,1.13429,1762.6,1762.5,8.5991]
[1745856022249,0.9644766,1762.7,1762.5,4.257]
[1745856022443,0.9644766,1762.7,1762.5,7.4648]
[1745856022651,0.9644766,1762.7,1762.6,1.13429]
[1745856023844,0.9644766,1762.7,1762.6,2.83389]
[1745856024039,0.9644766,1762.7,1762.6,4.57649]
[1745856024240,5.03791452,1763.0,1762.6,3.4422]
[1745856024443,1.13418,1762.8,1762.5,8.5991]
[1745856024748,1.13435,1762.5,1762.4,1.4185]
[1745856024952,4.34212,1762.6,1762.4,1.4185]
[1745856025145,5.628,1762.5,1762.3,1.13444]
[1745856025542,5.628,1762.5,1762.2,42.5426]
[1745856025543,1.13454,1762.3,1762.1,1.6996]
[1745856025840,1.826,1762.2,1762.1,2.8342]
[1745856026347,3.802,1762.3,1762.2,1.13454]
[1745856026540,3.802,1762.3,1762.2,2.92494]
[1745856028147,1.6934,1762.7,1762.6,1.13429]
[1745856028341,3.3815,1762.7,1762.6,1.13429]
[1745856028539,3.3815,1762.7,1762.4,3.2089]
[1745856028843,4.51578,1762.7,1762.5,1.13432]
[1745856029147,1.13429,1762.6,1762.5,1.13432]
[1745856029345,1.7695,1762.6,1762.5,1.13432]
[1745856029847,2.90379,1762.6,1762.5,1.13432]
[1745856030149,6.70579,1762.6,1762.5,1.13435]
[1745856030946,5.5715,1762.6,1762.5,1.13435]
[1745856031450,6.70579,1762.6,1762.5,1.13435]
[1745856032152,5.5715,1762.6,1762.5,1.13435]
[1745856032445,5.5715,1762.6,1762.3,6.044]
[1745856032646,1.13439,1762.5,1762.4,1.13436]
[1745856032854,2.92019,1762.5,1762.4,1.13436]
[1745856033048,1.7858,1762.5,1762.4,1.13436]
[1745856033251,5.5878,1762.5,1762.4,1.13436]
[1745856033447,6.72215,1762.5,1762.4,1.13436]
[1745856033648,5.5878,1762.5,1762.4,1.13436]
[1745856034251,6.72215,1762.5,1762.4,1.13436]
[1745856034848,1.13448,1762.3,1762.2,1.7308]
[1745856035150,3.802,1762.3,1762.2,2.86534]
[1745856035350,4.93648,1762.3,1762.2,2.86534]
[1745856035555,4.93648,1762.3,1762.2,1.7308]
[1745856035854,3.802,1762.3,1762.2,2.86534]
[1745856037158,4.93648,1762.3,1762.2,2.86534]
[1745856037357,3.802,1762.3,1762.2,2.86534]
[1745856038155,4.93648,1762.3,1762.2,2.86534]
[1745856038459,3.802,1762.3,1762.2,2.86534]
[1745856038651,4.93648,1762.3,1762.2,2.86534]
[1745856039153,3.802,1762.3,1762.2,2.86534]
[1745856040647,4.93648,1762.3,1762.2,2.86534]
[1745856040854,3.802,1762.3,1762.2,2.86534]
[1745856042765,3.21191452,1763.0,1762.9,1.13409]
[1745856043256,8.14794452,1763.0,1762.9,1.13409]
[1745856043554,3.80611452,1763.0,1762.9,1.13409]
[1745856043739,4.94014452,1763.0,1762.9,1.13409]
[1745856043945,3.80611452,1763.0,1762.9,1.13409]
[1745856044352,1.42237667,1763.0,1762.9,1.13409]
[1745856044547,1.42237667,1763.0,1762.9,2.93179]
[1745856045352,1.42237667,1763.0,1762.9,1.13409]
[1745856045943,3.08457667,1763.0,1762.9,1.13409]
[1745856046155,3.08457667,1763.0,1762.9,2.93179]
[1745856046650,3.08457667,1763.0,1762.9,6.13959]
[1745856047059,3.08457667,1763.0,1762.9,4.34189]
[1745856049757,11.29237667,1763.0,1762.8,1.13413]
[1745856049961,1.13417,1762.8,1762.7,1.13417]
[1745856050256,1.13427,1762.7,1762.6,1.13427]
[1745856050455,6.55617,1762.7,1762.6,1.13427]
[1745856050758,5.4219,1762.7,1762.6,1.13427]
[1745856050961,6.55612,1762.7,1762.6,1.13427]
[1745856051254,1.13415,1762.9,1762.8,1.13412]
[1745856051763,1.13421,1762.8,1762.7,1.13418]
[1745856051963,1.13425,1762.7,1762.6,1.13421]
[1745856052260,4.93622,1762.8,1762.7,1.13422]
[1745856052462,6.72862,1762.8,1762.7,1.13422]
[1745856052852,5.5944,1762.8,1762.7,1.13422]
[1745856054355,6.72856,1762.8,1762.7,1.13422]
[1745856056567,1.1343,1762.6,1762.5,1.13429]
[1745856056767,2.86026,1762.7,1762.6,1.13429]
[1745856056971,2.86022,1762.7,1762.6,1.13429]
[1745856057265,6.66222,1762.7,1762.6,1.13429]
[1745856057971,5.528,1762.7,1762.6,1.13429]
[1745856058170,0.9650079,1762.7,1762.6,9.34209]
[1745856058659,0.9650079,1762.7,1762.6,11.16389]
[1745856058966,0.9650079,1762.7,1762.6,6.16389]
[1745856059266,1.13413,1762.9,1762.8,1.13411]
[1745856059458,4.69423,1762.9,1762.8,1.13411]
[1745856059658,3.5601,1762.9,1762.8,1.13411]
[1745856059860,1.13398,1763.1,1762.7,4.55151]
[1745856060057,1.8499,1763.1,1763.0,1.13403]
[1745856060252,3.5601,1763.2,1763.1,1.13396]
[1745856061053,3.5601,1763.2,1763.1,2.84996]
[1745856061258,7.3621,1763.2,1763.1,3.28476716]
[1745856061458,5.6519,1763.2,1763.1,3.28476716]
[1745856061658,6.7858,1763.2,1763.1,2.84996]
[1745856062063,5.6519,1763.2,1763.1,2.84996]
[1745856062269,3.802,1763.2,1763.1,6.05776]
[1745856062470,3.802,1763.2,1763.1,7.88726]
[1745856063160,3.802,1763.2,1763.0,1.86104953]
[1745856063369,2.84116,1763.1,1763.0,1.418]
[1745856063870,4.60346,1763.1,1763.0,1.418]
[1745856064170,8.40546,1763.1,1763.0,2.55203]
[1745856064471,8.40546,1763.1,1763.0,1.418]
[1745856064868,13.40546,1763.1,1763.0,1.418]
[1745856065171,1.13426,1762.7,1762.6,1.13426]
[1745856065361,1.13438,1762.5,1762.4,1.13437]
[1745856065557,1.13438,1762.5,1762.4,1.13436]
[1745856066066,2.95583,1762.6,1762.5,1.13435]
[1745856066275,1.13433,1762.6,1762.5,1.13435]
[1745856066770,1.13441,1762.4,1762.3,1.13445]
[1745856066970,2.83584,1762.6,1762.1,9.56207]
[1745856066971,1.13439,1762.5,1762.4,1.13438]
[1745856067172,4.93645,1762.4,1762.3,1.13443]
[1745856067768,3.802,1762.4,1762.3,1.13443]
[1745856068371,1.7623,1762.7,1762.6,1.13429]
[1745856068959,1.7863,1762.8,1762.7,1.13422]
[1745856069258,4.34189,1762.9,1762.8,1.13416]
[1745856069575,2.90217,1763.0,1762.9,1.13409]
[1745856069766,1.7681,1763.0,1762.9,1.13409]
[1745856070075,6.70413,1763.0,1762.9,1.13409]
[1745856070266,6.70413,1763.0,1762.8,1.7126]
[1745856070267,1.13409,1762.9,1762.8,1.13413]
[1745856070467,6.70418,1763.0,1762.9,1.13409]
[1745856071164,1.13411,1762.9,1762.8,1.13411]
[1745856071370,1.13409,1762.9,1762.8,1.13411]
[1745856072174,1.13416,1762.8,1762.7,2.84677]
[1745856072365,1.13416,1762.8,1762.7,2.84681]
[1745856072565,1.13416,1762.8,1762.7,1.7126]
[1745856072761,1.13429,1762.6,1762.5,7.83485]
[1745856072966,1.13425,1762.7,1762.6,1.13425]
[1745856073268,4.93625,1762.7,1762.6,2.81765]
[1745856073971,4.93625,1762.7,1762.6,2.81769]
[1745856074177,1.13429,1762.6,1762.5,3.4927]
[1745856074377,1.13429,1762.6,1762.5,2.92335]
[1745856075074,4.93629,1762.6,1762.5,2.92335]
[1745856075274,3.802,1762.6,1762.5,2.92335]
[1745856075874,2.65820905,1762.6,1762.5,11.13115]
[1745856076076,2.65820905,1762.6,1762.5,6.13115]
[1745856076281,1.13418,1762.8,1762.7,1.13422]
[1745856076779,1.13422,1762.7,1762.6,1.8496]
[1745856077180,4.93622,1762.7,1762.6,2.98389]
[1745856077680,4.93622,1762.7,1762.6,1.8496]
[1745856077878,1.13441,1762.5,1762.3,9.1611]
[1745856078077,1.13441,1762.5,1762.4,1.13439]
[1745856078476,1.13441,1762.5,1762.4,2.81469]
[1745856079076,4.93641,1762.5,1762.4,2.81469]
[1745856079985,3.802,1762.5,1762.4,2.81469]
[1745856080175,2.83523,1763.0,1762.5,2.83584]
[1745856080374,1.13414,1762.9,1762.8,1.13413]
[1745856080879,2.83523,1763.0,1762.8,1.13413]
[1745856080880,1.13406,1763.0,1762.9,1.13403]
[1745856081080,5.38501,1763.1,1763.0,1.13403]
[1745856081281,5.38501,1763.1,1762.8,4.663]
[1745856081282,1.13403,1763.0,1762.9,2.96164]
[1745856081481,1.13403,1763.0,1762.9,2.96169]
[1745856082183,4.93603,1763.0,1762.9,2.96169]
[1745856082489,3.802,1763.0,1762.9,2.96169]
[1745856082684,2.63969,1763.0,1762.9,11.16949]
[1745856082874,3.2078,1763.7,1762.9,11.16949]
[1745856082875,16.07285286,1763.7,1763.6,1.13364]
[1745856083178,3.50208856,1763.7,1763.6,45.14144]
[1745856083382,2.89787719,1763.7,1763.6,45.14144]
[1745856083580,2.89787719,1763.7,1763.6,45.58173958]
[1745856084779,2.89787719,1763.7,1763.6,46.01694588]
[1745856085487,2.95667,1764.1,1763.7,2.83395]
[1745856085788,2.95667,1764.1,1763.8,1.6992]
[1745856085789,1.13345,1763.9,1763.8,1.6992]
[1745856086286,5.6253,1764.1,1763.8,1.6992]
[1745856086472,1.13345,1763.9,1763.8,1.6992]
[1745856086679,1.13345,1763.9,1763.8,2.83271]
[1745856086979,1.13341,1764.0,1763.9,1.13345]
[1745856087176,6.79431,1764.0,1763.9,2.97445]
[1745856087387,1.13349,1763.9,1763.7,1.13354]
[1745856087579,1.13351,1763.8,1763.7,1.841]
[1745856087786,1.13362,1763.7,1763.5,3.2078]
[1745856087980,1.13362,1763.7,1763.4,8.14691798]
[1745856087981,1.13371,1763.5,1763.4,1.6944]
[1745856088288,1.13377,1763.4,1763.3,3.2078]
[1745856088476,1.8589,1763.4,1762.9,0.43994262]
[1745856088678,1.13396,1763.1,1763.0,2.97503]
[1745856088883,1.13389,1763.3,1763.0,1.841]
[1745856089187,3.802,1763.2,1763.1,1.13391]
[1745856089384,4.93595,1763.2,1763.0,6.18278]
[1745856089580,4.93593,1763.2,1763.0,5.0488]
[1745856089782,3.802,1763.2,1763.0,5.0488]
[1745856089980,1.13409,1763.0,1762.9,1.13406]
[1745856090183,1.13409,1762.9,1762.8,3.6194]
[1745856090387,1.13416,1762.8,1762.7,10.38836288]
[1745856090776,1.13416,1762.8,1762.7,7.46315288]
[1745856090978,1.13422,1762.7,1762.6,11.19472933]
[1745856091181,2.91432,1762.7,1762.6,11.19472933]
[1745856091391,1.13422,1762.7,1762.6,11.19472933]
[1745856092392,1.13373,1763.5,1763.4,1.13376]
[1745856092589,3.2078,1763.7,1763.2,3.2078]
[1745856092590,1.13377,1763.4,1763.2,3.2078]
[1745856092786,1.13377,1763.4,1763.2,1.13387]
[1745856092985,1.13386,1763.3,1763.1,1.13396]
[1745856093185,3.802,1763.4,1763.2,1.13389]
[1745856093385,1.13386,1763.3,1763.2,1.13389]
[1745856093689,1.1339,1763.2,1763.1,1.13392]
[1745856093988,3.2078,1763.3,1763.0,4.57033]
[1745856094195,4.34156,1763.5,1763.3,1.13383]
[1745856094587,1.13381,1763.4,1763.2,1.13386]
[1745856094794,1.13377,1763.4,1763.3,1.13383]
[1745856094992,1.13377,1763.4,1763.2,1.13386]
[1745856095192,3.802,1763.4,1763.1,1.13393]
[1745856095396,1.1339,1763.2,1763.1,1.13393]
[1745856095692,1.13396,1763.1,1763.0,1.7353]
[1745856095995,1.13401,1763.1,1762.9,1.13405]
[1745856096184,4.93601,1763.1,1762.8,1.778]
[1745856096380,4.93601,1763.1,1762.9,1.13403]
[1745856096587,4.93601,1763.1,1763.0,1.13403]
[1745856096899,4.93601,1763.1,1762.9,1.13405]
[1745856097194,1.13403,1763.0,1762.9,1.13405]
[1745856097594,3.802,1763.1,1762.9,1.13405]
[1745856097794,1.13403,1763.0,1762.9,1.13405]
[1745856098605,1.13403,1763.0,1762.8,4.9858]
[1745856098606,1.13409,1762.9,1762.8,6.11991]
[1745856098793,1.13409,1762.9,1762.8,3.2078]
[1745856099204,4.93609,1762.9,1762.8,3.2078]
[1745856099601,3.802,1762.9,1762.5,4.9472]
[1745856099909,1.13424,1762.7,1762.6,1.13424]
[1745856100111,1.13417,1762.8,1762.7,1.13417]
[1745856101111,4.25,1762.9,1762.8,1.13416]
[1745856102011,1.13418,1762.8,1762.7,1.13417]
[1745856102811,9.18614,1762.9,1762.8,1.13416]
[1745856103112,5.38414,1762.9,1762.8,1.13416]
[1745856103612,1.1342,1762.8,1762.7,1.13417]
[1745856104211,6.7067,1762.8,1762.7,1.13417]
[1745856105207,1.13425,1762.7,1762.6,1.13423]
[1745856105413,2.83985,1762.7,1762.6,1.13423]
[1745856106113,2.83982,1762.7,1762.6,1.13423]
[1745856106304,6.64182,1762.7,1762.6,1.13423]
[1745856107812,1.13429,1762.6,1762.5,3.1482]
[1745856108012,1.13454,1762.2,1762.1,0.44820394]
[1745856108209,1.13461,1762.1,1762.0,5.9]
[1745856108512,1.13467,1762.0,1761.9,0.1418]
[1745856108703,5.0119,1762.1,1761.9,1.13473]
[1745856108901,1.13474,1761.9,1761.8,1.13476]
[1745856109114,6.14655,1762.1,1762.0,1.13467]
[1745856109325,1.13468,1762.0,1761.9,1.13469]
[1745856109613,2.93878,1762.0,1761.9,1.13469]
[1745856109817,2.29188545,1762.0,1761.9,1.13469]
[1745856110007,0.48778545,1762.0,1761.9,1.13469]
[1745856111118,1.62245545,1762.0,1761.9,1.13469]
[1745856111306,7.23485545,1762.0,1761.9,1.13474]
[1745856112020,7.23485545,1762.0,1761.7,2.18386816]
[1745856112021,1.13477,1761.9,1761.8,1.1348]
[1745856112217,1.8104,1761.9,1761.7,2.87122]
[1745856112420,3.43294545,1761.9,1761.8,1.1348]
[1745856112610,1.1348,1761.8,1761.7,1.7364]
[1745856112810,3.43297545,1761.9,1761.7,2.87121]
[1745856113018,3.43297545,1761.9,1761.8,1.1348]
[1745856113314,1.1348,1761.8,1761.7,1.7364]